{"text_format":"1","workbook":"xlsx","n_sheets":5,"sheets":["hiddenSheet","GlucoCalc","Ark3","Ark1","Ark2"],"not_rendered":{"charts":0,"images":1,"macros":1,"external_links":0,"defined_names":13,"comments":0,"pivot_tables":0},"unopened":[],"bounds":{"document_bytes":16777216,"sheet_cells":100000,"rows_first":2000,"rows_last":500,"rows_between":2000,"halvings":0,"cell_chars":16384,"cell_head_chars":4096},"cells_cut":0,"cells_raw":0,"read":"whole","date_system":"1900"}

{"sheet":"hiddenSheet","index":0,"n_rows":11,"n_cols":2,"rows_kept":11,"cut":false,"hidden":true,"merged":[]}
["nei","21.08.2023"]
["UB"]
["DOK"]
[2.2000000000000002]
["lagre"]
["EK_Avdeling¤2#4¤2# ¤3#EK_Avsnitt¤2#4¤2# ¤3#EK_Bedriftsnavn¤2#1¤2#Sørlandet sykehus HF¤3#EK_GjelderFra¤2#0¤2#01.07.2021¤3#EK_KlGjelderFra¤2#0¤2#¤3#EK_Opprettet¤2#0¤2#09.09.2008¤3#EK_Utgitt¤2#0¤2#25.01.2005¤3#EK_IBrukDato¤2#0¤2#19.07.2021¤3#EK_DokumentID¤2#0¤2#D18795¤3#EK_DokTittel¤2#0¤2#Intensiv Insulinbehandling - GlucoCalc doseringsveileder¤3#EK_DokType¤2#0¤2#Retningslinje¤3#EK_DocLvlShort¤2#0¤2# ¤3#EK_DocLevel¤2#0¤2# ¤3#EK_EksRef¤2#2¤2# 0\t¤3#EK_Erstatter¤2#0¤2#8.24¤3#EK_ErstatterD¤2#0¤2#01.02.2020¤3#EK_Signatur¤2#0¤2#Avd.led. E. Huldt-Nystrøm¤3#EK_Verifisert¤2#0¤2# ¤3#EK_Hørt¤2#0¤2# ¤3#EK_AuditReview¤2#2¤2# ¤3#EK_AuditApprove¤2#2¤2# ¤3#EK_Gradering¤2#0¤2#Åpen¤3#EK_Gradnr¤2#4¤2#0¤3#EK_Kapittel¤2#4¤2# ¤3#EK_Referanse¤2#2¤2# 0\t¤3#EK_RefNr¤2#0¤2#II.SOA.AIO.SSA.2.a-23¤3#EK_Revisjon¤2#0¤2#8.25¤3#EK_Ansvarlig¤2#0¤2#Vegard Tørå Dokka¤3#EK_SkrevetAv¤2#0¤2#V. Skogstrøm¤3#EK_DokAnsvNavn¤2#0¤2#V. Skogstrøm, ovl.¤3#EK_UText2¤2#0¤2# ¤3#EK_UText3¤2#0¤2# ¤3#EK_UText4¤2#0¤2# ¤3#EK_Status¤2#0¤2#I bruk¤3#EK_Stikkord¤2#0¤2#glucose blodsukker insulin resistens dosering¤3#EK_SuperStikkord¤2#0¤2#¤3#EK_Rapport¤2#3¤2#¤3#EK_EKPrintMerke¤2#0¤2#¤3#EK_Watermark¤2#0¤2#¤3#EK_Utgave¤2#0¤2#8.25¤3#EK_Merknad¤2#7¤2#¤3#EK_VerLogg¤2#2¤2#Ver. 8.25 - 19.07.2021|¤1#Ver. 8.24 - 18.02.2020|¤1#Ver. 8.23 - 28.02.2019|¤1#Ver. 8.22 - 28.02.2019|¤1#Ver. 8.21 - 01.10.2018|¤1#Ver. 8.20 - 01.10.2018|¤1#Ver. 8.19 - 01.10.2018|¤1#Ver. 8.18 - 14.06.2018|¤1#Ver. 8.17 - 14.06.2018|¤1#Ver. 8.16 - 05.04.2018|¤3#EK_RF1¤2#4¤2# ¤3#EK_RF2¤2#4¤2# ¤3#EK_RF3¤2#4¤2# ¤3#EK_RF4¤2#4¤2# ¤3#EK_RF5¤2#4¤2# ¤3#EK_RF6¤2#4¤2# ¤3#EK_RF7¤2#4¤2# ¤3#EK_RF8¤2#4¤2# ¤3#EK_RF9¤2#4¤2# ¤3#EK_Mappe1¤2#4¤2# ¤3#EK_Mappe2¤2#4¤2# ¤3#EK_Mappe3¤2#4¤2# ¤3#EK_Mappe4¤2#4¤2# ¤3#EK_Mappe5¤2#4¤2# ¤3#EK_Mappe6¤2#4¤2# ¤3#EK_Mappe7¤2#4¤2# ¤3#EK_Mappe8¤2#4¤2# ¤3#EK_Mappe9¤2#4¤2# ¤3#EK_DL¤2#0¤2#23¤3#EK_GjelderTil¤2#0¤2#01.07.2023¤3#EK_Vedlegg¤2#2¤2# 0\t¤3#EK_AvdelingOver¤2#4¤2# ¤3#EK_HRefNr¤2#0¤2# ¤3#EK_HbNavn¤2#0¤2# ¤3#EK_DokRefnr¤2#4¤2#00020102040201¤3#EK_Dokendrdato¤2#4¤2#18.02.2020 15:19:27¤3#EK_HbType¤2#4¤2# ¤3#EK_Offisiell¤2#4¤2# ¤3#EK_VedleggRef¤2#4¤2#II.SOA.AIO.SSA.2.a-23¤3#EK_Strukt00¤2#5¤2#¤5#II¤5#Klinikknivå¤5#0¤5#0¤4#.¤5#SOA¤5#Somatikk Arendal¤5#0¤5#0¤4#.¤5#AIO¤5#Anestesi, Intensiv, Operasjon¤5#0¤5#0¤4#.¤5#SSA¤5#Intensiv - SSA¤5#2¤5#0¤4#.¤5#2¤5#Pasienter og brukere¤5#0¤5#0¤4#.¤5#a¤5#Behandlingsrutiner¤5#0¤5#0¤4#\\¤3#EK_Strukt01¤2#5¤2#¤3#EK_Pub¤2#6¤2#;2;¤3#EKR_DokType¤2#0¤2# ¤3#EKR_Doktittel¤2#0¤2# ¤3#EKR_DokumentID¤2#0¤2# ¤3#EKR_RefNr¤2#0¤2# ¤3#EKR_Gradering¤2#0¤2# ¤3#EKR_Signatur¤2#0¤2# ¤3#EKR_Verifisert¤2#0¤2# ¤3#EKR_Hørt¤2#0¤2# ¤3#EKR_AuditReview¤2#2¤2# ¤3#EKR_AuditApprove¤2#2¤2# ¤3#EKR_AuditFinal¤2#2¤2# ¤3#EKR_Dokeier¤2#0¤2# ¤3#EKR_Status¤2#0¤2# ¤3#EKR_Opprettet¤2#0¤2# ¤3#EKR_Endret¤2#0¤2# ¤3#EKR_Ibruk¤2#0¤2# ¤3#EKR_Rapport¤2#3¤2# ¤3#EKR_Utgitt¤2#0¤2# ¤3#EKR_SkrevetAv¤2#0¤2# ¤3#EKR_UText1¤2#0¤2# ¤3#EKR_UText2¤2#0¤2# ¤3#EKR_UText3¤2#0¤2# ¤3#EKR_UText4¤2#0¤2# ¤3#EKR_DokRefnr¤2#4¤2# ¤3#EKR_Gradnr¤2#4¤2# ¤3#EKR_Strukt00¤2#5¤2#¤5#II¤5#Klinikknivå¤5#0¤5#0¤4#.¤5#SOA¤5#Somatikk Arendal¤5#0¤5#0¤4#.¤5#AIO¤5#Anestesi, Intensiv, Operasjon¤5#0¤5#0¤4#.¤5#SSA¤5#Intensiv - SSA¤5#2¤5#0¤4#.¤5#2¤5#Pasienter og brukere¤5#0¤5#0¤4#.¤5#a¤5#Behandlingsrutiner¤5#0¤5#0¤4#\\¤3#"]
["___"]
["___"]
["___"]
[0]
[-2]

{"sheet":"GlucoCalc","index":1,"n_rows":112,"n_cols":17,"rows_kept":112,"cut":false,"hidden":false,"merged":[[26,12,26,15],[11,4,12,4],[12,8,12,12],[11,5,12,7],[17,4,17,10]]}
[]
[]
[null,null,"GlucoCalc   for Intensiv Insulinbehandling ",null,null,null,null,null,"P-Glucose START :",null," Insulin START:",{"$f":"IF(OR(J3<9.1,J3>15.2),\" \",H4)","v":" "}," E/t"]
[null,null,"Veiledningsprogram for insulindose.",null,null,"HbA1c > 53 ?","Nei",{"$f":"(J3-3.33)*0.5","v":-1.665},"DELETE  eller TØM verdien for P-glucose START før inntasting i de blå feltene."]
[null,null,"Forutsetter jevn glucose / ernæringstilførsel",null,null,null,null,null,"TØM alle felter ved å trykke knappen til venstre FØR ny inntasting.",null,null,{"$f":"IF(OR(G4<54,G4=\"Nei\"),\" \",\"Diabetes HbA1c > 53\")","v":" "}]
[null,null,null,"Trykk ESC ved problem",null,null,null,null,"Bruk TAB for å flytte mellom feltene ",null,null,{"$f":"IF(L7>30,\"Feil hastighet\",\" \")","v":" "}]
[null,null,"     Tid",null," Forrige P-Glucose","Verdi:",null,"mmol/l","Insulindose fra  kl.",{"$f":"D7","v":"00:00:00"},"Innstilt hast.:",null," E/t"]
[null,null,null,{"$f":"IF(D9<D7,SUM(D9+E8),D9)","v":0},1]
[null,null,"Nå Tid",null,"   Aktuell  P-Glucose","Verdi:",null,"mmol/l","Insulindose  fra   kl.",{"$f":"D9","v":"00:00:00"},"Foreslått hast.:",{"$f":"IF(OR((G7<5),(D11=\"Feil ?\"),(L7=0),G9=0,('Ark3'!B27=1000)),\"OBS!\",'Ark3'!D27)","v":"OBS!"}," E/t"]
[null,null,null,"Tid MÅ velges fra liste",null,null,{"$f":"IF(G9>30,\"Feil format\",\" \")","v":" "},{"$f":"IF(OR((G11<-2.2),(G11>2.2),G9<4.5),\"Feil i glucose måling/tilførsel? SJEKK løsninger / tilkobling\",\" \")","v":"Feil i glucose måling/tilførsel? SJEKK løsninger / tilkobling"},"Tilleggsordinasjon til foreslått insulindose: "]
[null,null,null,{"$f":"IF(D12>4,\"Feil ?\",D12)","v":0}," Timer mellom målingene","Endring / t :",{"$f":"IF(OR(G9=0,G7=0,D12=0),\" \",(G9-G7)/D12)","v":" "},"mmol/l ",{"$f":"IF(OR(G9=0,L7=0),\"  \",H10)","v":"  "},null,null,null,{"$f":"IF(G9<4.5,\"  \",I14)","v":"  "}]
[null,null,null,{"$f":"(D8-D7)*24","v":0},"                                                                          Dersom > 4  timer mellom målingene må lege dosere insulin. ","                                                                Ved endring > 50 %  i           glucose el ernæringstilførsel tas                         P-glucose etter 1 time.                P-glucose dynamisk \"target\" :                HbA1c ≤ 53 :  7,0 - 10,0 mmol/l HbA1c ≥ 75 : 10,5- 13,5 mmol/l",null,null,{"$f":"IF(OR(G9<2.2,L7=0),\"   \",H14)","v":"   "},null,null,null,{"$f":"IF(AND((J3>6.1),(G7<1)),\" Mål P-gluc hver time de første 4 timer \",\" \")","v":" "}]
[null,null,"H4+H10+H14+D8+D12+E8+G10+L6",null,null,null,null,null,{"$f":"IF(OR(ISBLANK(D7),ISBLANK(D9),ISBLANK(G7),ISBLANK(G9),ISBLANK(L7)),\"\",'Ark3'!D28)","v":""}]
[null,null,"© Vidar Skogstrøm, Sørlandet sykehus Arendal",null,null,null,null,{"$f":"IF(OR((G11<-1.6),(G11>2),(G9<6.5)),\"P-glucose er ustabil  >>>   Mål P-gluc etter 1 time\",\" \")","v":"P-glucose er ustabil  >>>   Mål P-gluc etter 1 time"},{"$f":"IF(AND(L7<0.5,G9<6.5,G11>-1,G11<1),\" Vurder å seponere insulininfusjonen  \",\"  \")","v":"  "}]
[null,null,null,null,null,null,null,null,null,null,null,null,null,null,null,null,"Nei"]
[null,null,"KONTROLL  ",null,"Blodsukker måles hver 2. time \"Bed-side\" av intensivsykepleier dersom ikke programmet gir annen forordning.",null,null,null,null,null,null,null,null,null,null,null,54]
["00:00:00",null,null,null,"Ved oppstart måles P-Glucose hver time de første 4 timer for å stabilisere blodsukker nivået. Husk jevn glucose/ernæringstilførsel!",null,null,null,null,null,null,null,null,null,null,null,55]
["00:15:00",null,"  ",null,"Blodsukker verdiene føres direkte på intensivkurven knyttet til aktuelle klokkeslett.                                               OBS! Ved bruk av spesielle PERITONEALdialysevæsker MÅ spesielt blodsukkerapparat benyttes. ",null,null,null,null,null,null,null,null,null,null,null,56]
["00:30:00",null,"FORSIKTIGHETSREGLER",null,null,null,null,null,null,null,null,null,null,null,null,null,57]
["00:45:00",null,"Hypoglykemi er potensielt letalt, fordi Insulin er svært potent. Det skal alltid gå en glukose- og/eller ernæringsløsning jevnt, feks. bolus x 6 enteralt  ",null,null,null,null,null,null,null,null,null,null,null,null,null,58]
["01:00:00",null,null,"hele døgnet (også natt) når insulin gis som infusjon . Plutselig fall i blodsukker er lett å overse. Sedert pasient kan ikke meddele føling. ",null,null,null,null,null,null,null,null,null,null,null,null,59]
["01:15:00",null,"Ved kortvarig stopp i glucose/ernæringstilførsel der pasienten forlater intensiv ( eks. CT, trach. ) stoppes samtidig insulininfusjonen. ",null,null,null,null,null,null,null,null,null,null,null,null,null,60]
["01:30:00",null,null,"Ved retur tas P-Glucose og lege ordinerer videre glucose/ernæringsregime og insulindosering. Ved lengre operasjoner gis insulininfusjon.",null,null,null,null,null,null,null,null,null,null,null,null,61]
["01:45:00",null,"Ved faste eller annen stopp i enteral ernæring ( eks. anleggelse av tracheostomi ) økes / innsettes parenteral  glucose / ernæringstilførsel ",null,null,null,null,null,null,null,null,null,null,null,null,null,62]
["02:00:00",null,null,"for å dekke pasientens behov. Lege ordinerer. Parenteral tilførsel gis mest mulig jevnt kontinuerlig. Enteralt kan bolus hver 4. time gis.",null,null,null,null,null,null,null,null,null,null,null,null,63]
["02:15:00",null,null,"Dette sikrer vanligvis fortsatt jevn glucose / ernæringstilførsel med dekning av behov og at intensiv-insulin-prosedyren kan følges.",null,null,null,null,null,null,null,null,"1234visk",null,null,null,64]
["02:30:00",null,null,"Dersom enterale bolusdoser gir stor variasjon i P-Glucose og insulinbehov, doseres kontinuerlig.",null,null,null,null,null,null,null,"Dokument godkjent:",{"$f":"hiddenSheet!ek_gjelderfra","v":"21.08.2023"},null,null,null,65]
["02:45:00",null,null,null,null,null,null,null,null,null,null,null,null,null,null,null,66]
["03:00:00",null,null,null,null,null,null,null,null,null,null,null,null,null,null,null,67]
["03:15:00",null,null,null,null,null,null,null,null,null,null,null,null,null,null,null,68]
["03:30:00",null,null,null,null,null,null,null,null,null,null,null,null,null,null,null,69]
["03:45:00",null,null,null,null,null,null,null,null,null,null,null,null,null,null,null,70]
["04:00:00",null,null,null,null,null,null,null,null,null,null,null,null,null,null,null,71]
["04:15:00",null,null,null,null,null,null,null,null,null,null,null,null,null,null,null,72]
["04:30:00",null,null,null,null,null,null,null,null,null,null,null,null,null,null,null,73]
["04:45:00",null,null,null,null,null,null,null,null,null,null,null,null,null,null,null,74]
["05:00:00",null,null,null,null,null,null,null,null,null,null,null,null,null,null,null,75]
["05:15:00"]
["05:30:00"]
["05:45:00"]
["06:00:00"]
["06:15:00"]
["06:30:00"]
["06:45:00"]
["07:00:00"]
["07:15:00"]
["07:30:00"]
["07:45:00"]
["08:00:00"]
["08:15:00"]
["08:30:00"]
["08:45:00"]
["09:00:00"]
["09:15:00"]
["09:30:00"]
["09:45:00"]
["10:00:00"]
["10:15:00"]
["10:30:00"]
["10:45:00"]
["11:00:00"]
["11:15:00"]
["11:30:00"]
["11:45:00"]
["12:00:00"]
["12:15:00"]
["12:30:00"]
["12:45:00"]
["13:00:00"]
["13:15:00"]
["13:30:00"]
["13:45:00"]
["14:00:00"]
["14:15:00"]
["14:30:00"]
["14:45:00"]
["15:00:00"]
["15:15:00"]
["15:30:00"]
["15:45:00"]
["16:00:00"]
["16:15:00"]
["16:30:00"]
["16:45:00"]
["17:00:00"]
["17:15:00"]
["17:30:00"]
["17:45:00"]
["18:00:00"]
["18:15:00"]
["18:30:00"]
["18:45:00"]
["19:00:00"]
["19:15:00"]
["19:30:00"]
["19:45:00"]
["20:00:00"]
["20:15:00"]
["20:30:00"]
["20:45:00"]
["21:00:00"]
["21:15:00"]
["21:30:00"]
["21:45:00"]
["22:00:00"]
["22:15:00"]
["22:30:00"]
["22:45:00"]
["23:00:00"]
["23:15:00"]
["23:30:00"]
["23:45:00"]

{"sheet":"Ark3","index":2,"n_rows":42,"n_cols":22,"rows_kept":42,"cut":false,"hidden":false,"merged":[[1,8,1,13]]}
[null,"referens B32",0,1,2,3,4,5,0,1,2,3,4,5]
[null,"Actuell       P-Gluc","<-1,6",">=-1,6 and  <-0,8 ",">=-0,8 and <=0",">0 and <=1",">1 and <=2",">2","Kommentarer",null,null,null,null,null,null,"HbA1c ≤ 7%",null,null,"HbA1c > 7% brukes i calc","Endring:",null,"HbA1c > 53"]
[null,0,0,0,0,0,0,0,"STOPP INFUSJONEN ! Gi 50 % glucose iv.: 40 ml over 5 min.    P-glucose måles så hvert 30. min. Når P-glucose > 7,3 mmol/l:       START INSULIN etter kontakt med anestesilege som doserer insulin. Påse tilstrekkelig glucosetilførsel. Mål P-gluc etter 1 t","STOPP INFUSJONEN ! Gi 50 % glucose iv.: 40 ml over 5 min.    P-glucose måles så hvert 30. min. Når P-glucose > 7,3 mmol/l:       START INSULIN etter kontakt med anestesilege som doserer insulin. Påse tilstrekkelig glucosetilførsel. Mål P-gluc etter 1 t","STOPP INFUSJONEN ! Gi 50 % glucose iv.: 40 ml over 5 min.    P-glucose måles så hvert 30. min. Når P-glucose > 7,3 mmol/l:       START INSULIN etter kontakt med anestesilege som doserer insulin. Påse tilstrekkelig glucosetilførsel. Mål P-gluc etter 1 t","STOPP INFUSJONEN ! Gi 50 % glucose iv.: 30 ml over 5 min.    P-glucose måles så hvert 30. min. Når P-glucose > 7,3 mmol/l:       START INSULIN etter kontakt med anestesilege som doserer insulin. Påse tilstrekkelig glucosetilførsel. Mål P-gluc etter 1 t","STOPP INFUSJONEN ! Gi 50 % glucose iv.: 30 ml over 5 min.    P-glucose måles så hvert 30. min. Når P-glucose > 7,3 mmol/l:       START INSULIN etter kontakt med anestesilege som doserer insulin. Påse tilstrekkelig glucosetilførsel. Mål P-gluc etter 1 t","STOPP INFUSJONEN ! Gi 50 % glucose iv.: 20 ml over 5 min.    P-glucose måles så hvert 30. min. Når P-glucose > 7,3 mmol/l:       START INSULIN etter kontakt med anestesilege som doserer insulin. Påse tilstrekkelig glucosetilførsel. Mål P-gluc etter 1 t",null,0,null,null,{"$f":"V3","v":0},{"$f":"S4-S3","v":{"$error":"#VALUE!"}},null,0]
[null,{"$f":"IF(OR(GlucoCalc!$G$4<54,GlucoCalc!$G$4=\"Nei\"),P4,S4)","v":2.2000000000000002},0,0,0,0,0,0,"STOPP INFUSJONEN ! Gi 50 % glucose iv.: 30 ml over 5 min.    P-glucose måles så hvert 30. min. Når P-glucose > 7,3 mmol/l:       START INSULIN etter kontakt med anestesilege som doserer insulin. Påse tilstrekkelig glucosetilførsel. Mål P-gluc etter 1 t","STOPP INFUSJONEN ! Gi 50 % glucose iv.: 30 ml over 5 min.    P-glucose måles så hvert 30. min. Når P-glucose > 7,3 mmol/l:       START INSULIN etter kontakt med anestesilege som doserer insulin. Påse tilstrekkelig glucosetilførsel. Mål P-gluc etter 1 t","STOPP INFUSJONEN ! Gi 50 % glucose iv.: 30 ml over 5 min.    P-glucose måles så hvert 30. min. Når P-glucose > 7,3 mmol/l:       START INSULIN etter kontakt med anestesilege som doserer insulin. Påse tilstrekkelig glucosetilførsel. Mål P-gluc etter 1 t","STOPP INFUSJONEN ! Gi 50 % glucose iv.: 20 ml over 5 min.    P-glucose måles så hvert 30. min. Når P-glucose > 7,3 mmol/l:       START INSULIN etter kontakt med anestesilege som doserer insulin. Påse tilstrekkelig glucosetilførsel. Mål P-gluc etter 1 t","STOPP INFUSJONEN ! Gi 50 % glucose iv.: 20 ml over 5 min.    P-glucose måles så hvert 30. min. Når P-glucose > 7,3 mmol/l:       START INSULIN etter kontakt med anestesilege som doserer insulin. Påse tilstrekkelig glucosetilførsel. Mål P-gluc etter 1 t","STOPP INFUSJONEN ! Gi 50 % glucose iv.: 20 ml over 5 min.    P-glucose måles så hvert 30. min. Når P-glucose > 7,3 mmol/l:       START INSULIN etter kontakt med anestesilege som doserer insulin. Påse tilstrekkelig glucosetilførsel. Mål P-gluc etter 1 t",null,2.2000000000000002,null,null,{"$f":"V4","v":{"$error":"#VALUE!"}},{"$f":"S5-S4","v":{"$error":"#VALUE!"}},null,{"$f":"(0.78*V31)-2.6","v":{"$error":"#VALUE!"}}]
[null,{"$f":"IF(OR(GlucoCalc!$G$4<54,GlucoCalc!$G$4=\"Nei\"),P5,S5)","v":3},0,0,0,0,0,0,"STOPP INFUSJONEN ! Gi 50 % glucose iv.: 20 ml over 5 min.    P-glucose måles så hvert 30. min. Når P-glucose > 7,3 mmol/l:       START INSULIN etter kontakt med anestesilege som doserer insulin. Påse tilstrekkelig glucosetilførsel. Mål P-gluc etter 1 t","STOPP INFUSJONEN ! Gi 50 % glucose iv.: 20 ml over 5 min.    P-glucose måles så hvert 30. min. Når P-glucose > 7,3 mmol/l:       START INSULIN etter kontakt med anestesilege som doserer insulin. Påse tilstrekkelig glucosetilførsel. Mål P-gluc etter 1 t","STOPP INFUSJONEN ! Gi 50 % glucose iv.: 20 ml over 5 min.    P-glucose måles så hvert 30. min. Når P-glucose > 7,3 mmol/l:       START INSULIN etter kontakt med anestesilege som doserer insulin. Påse tilstrekkelig glucosetilførsel. Mål P-gluc etter 1 t","STOPP INFUSJONEN ! Gi 50 % glucose iv.: 10 ml over 5 min.    P-glucose måles så hvert 30. min. Når P-glucose > 7,3 mmol/l:       START INSULIN etter kontakt med anestesilege som doserer insulin. Påse tilstrekkelig glucosetilførsel. Mål P-gluc etter 1 t","STOPP INFUSJONEN ! Gi 50 % glucose iv.: 10 ml over 5 min.    P-glucose måles så hvert 30. min. Når P-glucose > 7,3 mmol/l:       START INSULIN etter kontakt med anestesilege som doserer insulin. Påse tilstrekkelig glucosetilførsel. Mål P-gluc etter 1 t","STOPP INFUSJONEN ! Gi 50 % glucose iv.: 10 ml over 5 min.    P-glucose måles så hvert 30. min. Når P-glucose > 7,3 mmol/l:       START INSULIN etter kontakt med anestesilege som doserer insulin. Påse tilstrekkelig glucosetilførsel. Mål P-gluc etter 1 t",null,3,null,null,{"$f":"V5","v":{"$error":"#VALUE!"}},{"$error":"#VALUE!"},null,{"$f":"(0.84*V31)-2.6","v":{"$error":"#VALUE!"}}]
[null,{"$f":"IF(OR(GlucoCalc!$G$4<54,GlucoCalc!$G$4=\"Nei\"),P6,S6)","v":3.5},0,0,0,0,0,0,"STOPP INFUSJONEN ! Gi 50 % glucose iv.: 20 ml over 5 min.    P-glucose måles så hver time.   Når P-glucose > 7,3 mmol/l:       START INSULIN etter kontakt med anestesilege som doserer insulin. Påse tilstrekkelig glucosetilførsel. Mål P-gluc etter 1 t","STOPP INFUSJONEN ! Gi 50 % glucose iv.: 10 ml over 5 min.    P-glucose måles så hver time.   Når P-glucose > 7,3 mmol/l:       START INSULIN etter kontakt med anestesilege som doserer insulin. Påse tilstrekkelig glucosetilførsel. Mål P-gluc etter 1 t","STOPP INFUSJONEN ! Gi 50 % glucose iv.: 10 ml over 5 min.    P-glucose måles så hver time.   Når P-glucose > 7,3 mmol/l:       START INSULIN etter kontakt med anestesilege som doserer insulin. Påse tilstrekkelig glucosetilførsel. Mål P-gluc etter 1 t","STOPP INFUSJONEN! Unntak ved Diabetes Type 1: Gi  0,5 E/t  Mål P- glucose HVER time til P- gluc > 7,3 mmol/l. Da startes  HALVPARTEN AV INSULINDOSE før stopp ( evt. før 0,5 E/t )    Mål deretter P-glucose HVER time første 2 t","STOPP INFUSJONEN! Unntak ved Diabetes Type 1: Gi  0,5 E/t  Mål P- glucose HVER time til P- gluc > 7,3 mmol/l. Da startes  HALVPARTEN AV INSULINDOSE før stopp ( evt. før 0,5 E/t )    Mål deretter P-glucose HVER time første 2 t","STOPP INFUSJONEN! Unntak ved Diabetes Type 1: Gi  0,5 E/t  Mål P- glucose HVER time til P- gluc > 7,3 mmol/l. Da startes  HALVPARTEN AV INSULINDOSE før stopp ( evt. før 0,5 E/t )    Mål deretter P-glucose HVER time første 2 t",null,3.5,null,null,{"$f":"V6","v":{"$error":"#VALUE!"}},{"$error":"#VALUE!"},null,{"$f":"(0.9*V31)-2.6","v":{"$error":"#VALUE!"}}]
[null,{"$f":"IF(OR(GlucoCalc!$G$4<54,GlucoCalc!$G$4=\"Nei\"),P7,S7)","v":4},0,0,0,0,0,0,"STOPP INFUSJONEN ! Gi 50 % glucose iv.: 10 ml over 5 min.    P-glucose måles så hver time.   Når P-glucose > 7,3 mmol/l:       START INSULIN etter kontakt med anestesilege som doserer insulin. Påse tilstrekkelig glucosetilførsel. Mål P-gluc etter 1 t","STOPP INFUSJONEN! Unntak ved Diabetes Type 1: Gi  0,5 E/t  Mål P- glucose HVER time til P- gluc > 7,3 mmol/l. Da startes  HALVPARTEN AV INSULINDOSE før stopp ( evt. før 0,5 E/t )    Mål deretter P-glucose HVER time første 2 t","STOPP INFUSJONEN! Unntak ved Diabetes Type 1: Gi  0,5 E/t  Mål P- glucose HVER time til P- gluc > 7,3 mmol/l. Da startes  HALVPARTEN AV INSULINDOSE før stopp ( evt. før 0,5 E/t )    Mål deretter P-glucose HVER time første 2 t","STOPP INFUSJONEN! Unntak ved Diabetes Type 1: Gi  0,5 E/t  Mål P- glucose HVER time til P- gluc > 7,3 mmol/l. Da startes  HALVPARTEN AV INSULINDOSE før stopp ( evt. før 0,5 E/t )    Mål deretter P-glucose HVER time første 2 t","STOPP INFUSJONEN! Unntak ved Diabetes Type 1: Gi  0,5 E/t  Mål P- glucose HVER time til P- gluc > 7,3 mmol/l. Da startes  HALVPARTEN AV INSULINDOSE før stopp ( evt. før 0,5 E/t )    Mål deretter P-glucose HVER time første 2 t","STOPP INFUSJONEN! Unntak ved Diabetes Type 1: Gi  0,5 E/t  Mål P- glucose HVER time til P- gluc > 7,3 mmol/l. Da startes  HALVPARTEN AV INSULINDOSE før stopp ( evt. før 0,5 E/t )    Mål deretter P-glucose HVER time første 2 t",null,4,null,null,{"$error":"#VALUE!"},{"$error":"#VALUE!"},null,{"$f":"(0.96*V31)-2.6","v":{"$error":"#VALUE!"}}]
[null,{"$f":"IF(OR(GlucoCalc!$G$4<54,GlucoCalc!$G$4=\"Nei\"),P8,S8)","v":4.5},0,0,0,0,0,0,"STOPP INFUSJONEN ! Gi 50 % glucose iv.: 10 ml over 5 min.    P-glucose måles så hver time.   Når P-glucose > 7,3 mmol/l:       START INSULIN etter kontakt med anestesilege som doserer insulin. Påse tilstrekkelig glucosetilførsel. Mål P-gluc etter 1 t","STOPP INFUSJONEN! Unntak ved Diabetes Type 1: Gi  0,5 E/t  Mål P- glucose HVER time til P- gluc > 7,3 mmol/l. Da startes  HALVPARTEN AV INSULINDOSE før stopp ( evt. før 0,5 E/t )    Mål deretter P-glucose HVER time første 2 t","STOPP INFUSJONEN! Unntak ved Diabetes Type 1: Gi  0,5 E/t  Mål P- glucose HVER time til P- gluc > 7,3 mmol/l. Da startes  HALVPARTEN AV INSULINDOSE før stopp ( evt. før 0,5 E/t )    Mål deretter P-glucose HVER time første 2 t","STOPP INFUSJONEN! Unntak ved Diabetes Type 1: Gi  0,5 E/t  Mål P- glucose HVER time til P- gluc > 7,3 mmol/l. Da startes  HALVPARTEN AV INSULINDOSE før stopp ( evt. før 0,5 E/t )    Mål deretter P-glucose HVER time første 2 t","STOPP INFUSJONEN! Unntak ved Diabetes Type 1: Gi  0,5 E/t  Mål P- glucose HVER time til P- gluc > 7,3 mmol/l. Da startes  HALVPARTEN AV INSULINDOSE før stopp ( evt. før 0,5 E/t )    Mål deretter P-glucose HVER time første 2 t","STOPP INFUSJONEN! Unntak ved Diabetes Type 1: Gi  0,5 E/t  Mål P- glucose HVER time til P- gluc > 7,3 mmol/l. Da startes  HALVPARTEN AV INSULINDOSE før stopp ( evt. før 0,5 E/t )    Mål deretter P-glucose HVER time første 2 t",null,4.5,null,null,{"$error":"#VALUE!"},{"$error":"#VALUE!"},null,{"$f":"(1.03*V31)-2.6","v":{"$error":"#VALUE!"}}]
[null,{"$f":"IF(OR(GlucoCalc!$G$4<54,GlucoCalc!$G$4=\"Nei\"),P9,S9)","v":5},0.15,0.20,0.40,0.60,1,1,"Se evt. merknad over","Se evt. merknad over","Se evt. merknad over","Se evt. merknad over","Se evt. merknad over","Se evt. merknad over",null,5,null,null,{"$error":"#VALUE!"},{"$error":"#VALUE!"},null,{"$f":"(1.1*V31)-2.6","v":{"$error":"#VALUE!"}}]
[null,{"$f":"IF(OR(GlucoCalc!$G$4<54,GlucoCalc!$G$4=\"Nei\"),P10,S10)","v":5.5},0.25,0.35,0.5,0.70,1,1,"Se evt. merknad over","Se evt. merknad over","Se evt. merknad over","Se evt. merknad over","Se evt. merknad over","Se evt. merknad over",null,5.5,null,null,{"$error":"#VALUE!"},{"$error":"#VALUE!"},null,{"$f":"(1.17*V31)-2.6","v":{"$error":"#VALUE!"}}]
[null,{"$f":"IF(OR(GlucoCalc!$G$4<54,GlucoCalc!$G$4=\"Nei\"),P11,S11)","v":6},0.33,0.45,0.60,0.80,0.90,1,"Se evt. merknad over","Se evt. merknad over","Se evt. merknad over","Se evt. merknad over",{"$f":"IF($D$27>16,\"Vurder reduksjon i glucose og ernærings-tilførsel\",\"Se evt. merknad over  \")","v":"Se evt. merknad over  "},{"$f":"IF($D$27>16,\"Vurder reduksjon i glucose og ernærings-tilførsel\",\"Se evt. merknad over  \")","v":"Se evt. merknad over  "},null,6,null,null,{"$error":"#VALUE!"},{"$error":"#VALUE!"},null,{"$f":"(1.24*V31)-2.6","v":{"$error":"#VALUE!"}}]
[null,{"$f":"IF(OR(GlucoCalc!$G$4<54,GlucoCalc!$G$4=\"Nei\"),P12,S12)","v":6.5},0.40,0.55000000000000004,0.70,0.90,1,1,"Se evt. merknad over","Se evt. merknad over","Se evt. merknad over","Se evt. merknad over",{"$f":"IF($D$27>16,\"Vurder reduksjon i glucose og ernærings-tilførsel\",\"Se evt. merknad over  \")","v":"Se evt. merknad over  "},{"$f":"IF($D$27>16,\"Vurder reduksjon i glucose og ernærings-tilførsel\",\"Se evt. merknad over  \")","v":"Se evt. merknad over  "},null,6.5,null,null,{"$error":"#VALUE!"},{"$error":"#VALUE!"},null,{"$f":"(1.31*V31)-2.6","v":{"$error":"#VALUE!"}}]
[null,{"$f":"IF(OR(GlucoCalc!$G$4<54,GlucoCalc!$G$4=\"Nei\"),P13,S13)","v":7},0.45,0.65,0.80,0.95,1,1.1000000000000001,"Se evt. merknad over","Se evt. merknad over","Se evt. merknad over",{"$f":"IF($D$27>16,\"Vurder reduksjon i glucose og ernærings-tilførsel\",\"Se evt. merknad over  \")","v":"Se evt. merknad over  "},{"$f":"IF($D$27>16,\"Vurder reduksjon i glucose og ernærings-tilførsel\",\"Se evt. merknad over  \")","v":"Se evt. merknad over  "},"Se evt. merknad over  ",null,7,null,null,{"$error":"#VALUE!"},{"$error":"#VALUE!"},null,{"$f":"(1.38*V31)-2.6","v":{"$error":"#VALUE!"}}]
[null,{"$f":"IF(OR(GlucoCalc!$G$4<54,GlucoCalc!$G$4=\"Nei\"),P14,S14)","v":7.5},0.5,0.70,0.90,1,1.1000000000000001,1.20,"Se evt. merknad over","Se evt. merknad over","Se evt. merknad over",{"$f":"IF($D$27>16,\"Vurder reduksjon i glucose og ernærings-tilførsel\",\"Se evt. merknad over  \")","v":"Se evt. merknad over  "},"Se evt. merknad over  ","Se evt. merknad over  ",null,7.5,null,null,{"$error":"#VALUE!"},{"$error":"#VALUE!"},null,{"$f":"(1.45*V31)-2.6","v":{"$error":"#VALUE!"}}]
[null,{"$f":"IF(OR(GlucoCalc!$G$4<54,GlucoCalc!$G$4=\"Nei\"),P15,S15)","v":8},0.55000000000000004,0.75,0.95,1,1.20,1.30,"Se evt. merknad over","Se evt. merknad over","Se evt. merknad over","Se evt. merknad over  ","Se evt. merknad over  ","Se evt. merknad over  ",null,8,null,null,{"$error":"#VALUE!"},{"$error":"#VALUE!"},null,{"$f":"(1.51*V31)-2.6","v":{"$error":"#VALUE!"}}]
[null,{"$f":"IF(OR(GlucoCalc!$G$4<54,GlucoCalc!$G$4=\"Nei\"),P16,S16)","v":8.5},0.60,0.80,1,1.1000000000000001,1.25,1.40,"Se evt. merknad over","Se evt. merknad over",{"$f":"IF($D$27>16,\"Vurder reduksjon i glucose og ernærings-tilførsel\",\"Se evt. merknad over  \")","v":"Se evt. merknad over  "},"Se evt. merknad over  ","Se evt. merknad over  ","Se evt. merknad over  ",null,8.5,null,null,{"$error":"#VALUE!"},{"$error":"#VALUE!"},null,{"$f":"(1.57*V31)-2.6","v":{"$error":"#VALUE!"}}]
[null,{"$f":"IF(OR(GlucoCalc!$G$4<54,GlucoCalc!$G$4=\"Nei\"),P17,S17)","v":9},0.70,0.85,1,1.1499999999999999,1.30,1.45,"Se evt. merknad over","Se evt. merknad over","Se evt. merknad over  ","Se evt. merknad over  ","Se evt. merknad over  ","Se evt. merknad over  ",null,9,null,null,{"$error":"#VALUE!"},{"$error":"#VALUE!"},null,{"$f":"(1.63*V31)-2.6","v":{"$error":"#VALUE!"}}]
[null,{"$f":"IF(OR(GlucoCalc!$G$4<54,GlucoCalc!$G$4=\"Nei\"),P18,S18)","v":9.5},0.80,0.90,1,1.20,1.35,1.5,"Se evt. merknad over","Se evt. merknad over","Se evt. merknad over  ",{"$f":"IF($D$27>16,\"Vurder reduksjon i glucose og ernærings-tilførsel\",\"Se evt. merknad over  \")","v":"Se evt. merknad over  "},{"$f":"IF($D$27>16,\"Vurder reduksjon i glucose og ernærings-tilførsel\",\"Se evt. merknad over  \")","v":"Se evt. merknad over  "},"Se evt. merknad over  ",null,9.5,null,null,{"$error":"#VALUE!"},{"$error":"#VALUE!"},null,{"$f":"(1.69*V31)-2.6","v":{"$error":"#VALUE!"}}]
[null,{"$f":"IF(OR(GlucoCalc!$G$4<54,GlucoCalc!$G$4=\"Nei\"),P19,S19)","v":10},0.85,0.95,1,1.25,1.40,1.55,"Se evt. merknad over","Se evt. merknad over","Se evt. merknad over  ",{"$f":"IF($D$27>16,\"Vurder reduksjon i glucose og ernærings-tilførsel\",\"Se evt. merknad over  \")","v":"Se evt. merknad over  "},{"$f":"IF($D$27>16,\"Vurder reduksjon i glucose og ernærings-tilførsel\",\"Se evt. merknad over  \")","v":"Se evt. merknad over  "},"Se evt. merknad over  ",null,10,null,null,{"$error":"#VALUE!"},{"$error":"#VALUE!"},null,{"$f":"(1.75*V31)-2.6","v":{"$error":"#VALUE!"}}]
[null,{"$f":"IF(OR(GlucoCalc!$G$4<54,GlucoCalc!$G$4=\"Nei\"),P20,S20)","v":10.5},0.90,1,1.1000000000000001,1.30,1.45,1.60,"Se evt. merknad over",{"$f":"IF($D$27>16,\"Vurder reduksjon i glucose og ernærings-tilførsel\",\"Se evt. merknad over  \")","v":"Se evt. merknad over  "},"Se evt. merknad over  ","Se evt. merknad over  ","Se evt. merknad over  ","Se evt. merknad over  ",null,10.5,null,null,{"$error":"#VALUE!"},{"$error":"#VALUE!"},null,{"$f":"(1.82*V31)-2.6","v":{"$error":"#VALUE!"}}]
[null,{"$f":"IF(OR(GlucoCalc!$G$4<54,GlucoCalc!$G$4=\"Nei\"),P21,S21)","v":11.5},0.95,1,1.20,1.35,1.55,1.70,"Se evt. merknad over",{"$f":"IF($D$27>16,\"Vurder reduksjon i glucose og ernærings-tilførsel\",\"Se evt. merknad over  \")","v":"Se evt. merknad over  "},"Se evt. merknad over  ","Se evt. merknad over  ","Se evt. merknad over  ","Se evt. merknad over  ",null,11.5,null,null,{"$error":"#VALUE!"},{"$error":"#VALUE!"},null,{"$f":"(1.96*V31)-2.6","v":{"$error":"#VALUE!"}}]
[null,{"$f":"IF(OR(GlucoCalc!$G$4<54,GlucoCalc!$G$4=\"Nei\"),P22,S22)","v":12.5},1,1.1499999999999999,1.30,1.5,1.70,1.80,{"$f":"IF($D$27>16,\"Vurder reduksjon i glucose og ernærings-tilførsel\",\"Se evt. merknad over  \")","v":"Se evt. merknad over  "},{"$f":"IF($D$27>16,\"Vurder reduksjon i glucose og ernærings-tilførsel\",\"Se evt. merknad over  \")","v":"Se evt. merknad over  "},"Se evt. merknad over  ",{"$f":"N29","v":" "},{"$f":"N29","v":" "},{"$f":"N29","v":" "},null,12.5,null,null,{"$error":"#VALUE!"},{"$error":"#VALUE!"},null,{"$f":"(2.1*V31)-2.6","v":{"$error":"#VALUE!"}}]
[null,{"$f":"IF(OR(GlucoCalc!$G$4<54,GlucoCalc!$G$4=\"Nei\"),P23,S23)","v":14},1,1.30,1.5,1.65,1.85,2,{"$f":"IF($D$27>16,\"Vurder reduksjon i glucose og ernærings-tilførsel\",\"Se evt. merknad over  \")","v":"Se evt. merknad over  "},{"$f":"IF($D$27>16,\"Vurder reduksjon i glucose og ernærings-tilførsel\",\"Se evt. merknad over  \")","v":"Se evt. merknad over  "},"Se evt. merknad over  ",{"$f":"N32","v":" "},{"$f":"N32","v":" "},{"$f":"N32","v":" "},null,14,null,null,{"$error":"#VALUE!"},{"$error":"#VALUE!"},null,{"$f":"(2.3*V31)-2.6","v":{"$error":"#VALUE!"}}]
[null,{"$f":"IF(OR(GlucoCalc!$G$4<54,GlucoCalc!$G$4=\"Nei\"),P24,S24)","v":16},1.20,1.45,1.60,1.80,2,2.2000000000000002,{"$f":"IF($D$27>16,\"Vurder reduksjon i glucose og ernærings-tilførsel\",\"Se evt. merknad over  \")","v":"Se evt. merknad over  "},{"$f":"IF($D$27>16,\"Vurder reduksjon i glucose og ernærings-tilførsel\",\"Se evt. merknad over  \")","v":"Se evt. merknad over  "},"Se evt. merknad over  ",{"$f":"N35","v":" "},{"$f":"N35","v":" "},{"$f":"N35","v":" "},null,16,null,null,{"$error":"#VALUE!"},{"$error":"#VALUE!"},null,{"$f":"(2.5*V31)-2.6","v":{"$error":"#VALUE!"}}]
[null,20,1000,1000,1000,1000,1000,1000,"Kontakt anestesilege for insulinordinasjon.                          Vurder reduksjon i glucose og ernærings-tilførsel.","Kontakt anestesilege for insulinordinasjon.                          Vurder reduksjon i glucose og ernærings-tilførsel.","Kontakt anestesilege for insulinordinasjon.                          Vurder reduksjon i glucose og ernærings-tilførsel.","Kontakt anestesilege for insulinordinasjon.                          Vurder reduksjon i glucose og ernærings-tilførsel.","Kontakt anestesilege for insulinordinasjon.                          Vurder reduksjon i glucose og ernærings-tilførsel.","Kontakt anestesilege for insulinordinasjon.                          Vurder reduksjon i glucose og ernærings-tilførsel.",null,20,null,null,20,null,null,20]
[null,"Hjelpeverdier"]
[null,{"$f":"IF(B32=0,LOOKUP(B29,B3:B25,C3:C25),IF(B32=1,LOOKUP(B29,B3:B25,D3:D25),IF(B32=2,LOOKUP(B29,B3:B25,E3:E25),IF(B32=3,LOOKUP(B29,B3:B25,F3:F25),IF(B32=5,LOOKUP(B29,B3:B25,H3:H25),LOOKUP(B29,B3:B25,G3:G25))))))","v":0},"Faktor tab.",{"$f":"IF(B27*B31<30,(B27*B31),30)","v":0},"Foreslått dose returnert til hovedark",null,null,null,null,"Viser uaktuelle verdier",null,null,null,null,null,null,"Formel for gj.sn. P-Glucose:"]
[null,null,null,{"$f":"IF(B32=0,LOOKUP(B29,B3:B25,I3:I25),IF(B32=1,LOOKUP(B29,B3:B25,J3:J25),IF(B32=2,LOOKUP(B29,B3:B25,K3:K25),IF(B32=3,LOOKUP(B29,B3:B25,L3:L25),IF(B32=4,LOOKUP(B29,B3:B25,M3:M25),LOOKUP(B29,B3:B25,N3:N25))))))","v":"STOPP INFUSJONEN ! Gi 50 % glucose iv.: 20 ml over 5 min.    P-glucose måles så hvert 30. min. Når P-glucose > 7,3 mmol/l:       START INSULIN etter kontakt med anestesilege som doserer insulin. Påse tilstrekkelig glucosetilførsel. Mål P-gluc etter 1 t"},"Kommentar returnert til hovedark",null,null,null,null,null,null,"Doser","REF:","Bolus meldinger i kommentarfelt L22:N24",null,null,null,null,"(1,59*HbA1c) - 2,6  OBS HbA1c i %"]
[null,{"$f":"GlucoCalc!G9","v":0},"Verdi Nå",null,null,null,null,null,null,"Bolus:",null,"2,0 - 6,0","N29:",{"$f":"IF(AND(GlucoCalc!L7>3,GlucoCalc!L7<6,GlucoCalc!G11>3),\"Gi også bolus med Insulin:  2,0  E\",N30)","v":" "}]
[null,{"$f":"GlucoCalc!G11","v":" "},"Ending pr. time",null,null,null,null,null,null,null,null,"2,0 - 6,0",null,{"$f":"IF(AND(GlucoCalc!L7>=6,GlucoCalc!G11>3,GlucoCalc!L7<15),\"Gi også bolus med Insulin:   4,0  E\",N31)","v":" "},null,null,null,null,"Aktuell HbA1c > 7% :",{"$f":"V31","v":{"$error":"#VALUE!"}}]
[null,{"$f":"GlucoCalc!L7","v":0},"Hastighet NÅ",null,null,null,null,null,null,null,null,"2,0 - 6,0",null,{"$f":"IF(AND(GlucoCalc!L7>=15,GlucoCalc!L7<=30),\"Gi også bolus med Insulin:   6,0  E\",\" \")","v":" "},null,null,null,null,"Aktuell HbA1c > 53 :",{"$f":"GlucoCalc!G4","v":"Nei"},null,{"$f":"7+(T31-53)*0.09","v":{"$error":"#VALUE!"}}]
[null,{"$f":"IF(AND(B30<-0.8,B30>=-1.6),1,IF(B30<-1.6,0,IF(AND(B30>1,B30<=2),4,IF(B30>2,5,IF(AND(B30>=-0.8,B30<=0),2,3)))))","v":5},"Alternative endringsintervall",null,null,null,null,null,null,"Bolus:",null,"3,0 - 7,0","N32:",{"$f":"IF(AND(GlucoCalc!L7>3,GlucoCalc!G11>3,GlucoCalc!L7<6),\"Gi også bolus med Insulin:  3,0  E\",N33)","v":" "}]
[null,null,null,null,null,null,null,null,null,null,null,"3,0 - 7,0",null,{"$f":"IF(AND(GlucoCalc!L7>=6,GlucoCalc!G11>3,GlucoCalc!L7<15),\"Gi også bolus med Insulin:   5,0  E\",N34)","v":" "}]
[null,"P-glucose \"target\" :",null,"HbA1c ≤ 53 :","   7,5 - 10,5 mmol/l",null,null,null,null,null,null,"3,0 - 7,0",null,{"$f":"IF(AND(GlucoCalc!L7>=15,GlucoCalc!L7<=30),\"Gi også bolus med Insulin:   7,0  E\",\" \")","v":" "}]
[null,"dynamisk regulering",null,"HbA1c ≥ 75 :"," 10,5 - 13,5 mmol/l",null,null,null,null,"Bolus:",null,"4,0 - 8,0","N35:",{"$f":"IF(AND(GlucoCalc!L7>3,GlucoCalc!L7<6),\"Gi også bolus med Insulin:  4,0  E\",N36)","v":" "}]
[null,null,null,null,null,null,null,null,null,null,null,"4,0 - 8,0",null,{"$f":"IF(AND(GlucoCalc!L7>=6,GlucoCalc!L7<15),\"Gi også bolus med Insulin:   6,0  E\",N37)","v":" "}]
[null,"FORKLARING:",null,null,null,null,null,null,null,null,null,"4,0 - 8,0",null,{"$f":"IF(AND(GlucoCalc!L7>=15,GlucoCalc!L7<=30),\"Gi også bolus med Insulin:   8,0  E\",\" \")","v":" "}]
[null,"Actuell P-Gluc","Faktor","Range"]
[null,"….."]
[null,6.5,0.5,"6,5-6,9"]
[null,7,0.55000000000000004,"7,0-7,4"]
[null,7.5,0.60,"7,5-7,9"]

{"sheet":"Ark1","index":3,"n_rows":0,"n_cols":0,"rows_kept":0,"cut":false,"hidden":false,"merged":[]}

{"sheet":"Ark2","index":4,"n_rows":0,"n_cols":0,"rows_kept":0,"cut":false,"hidden":false,"merged":[]}